Cogmind - Beta 15 @@@ ROGUE MODE // 2025.10.12 @ 03:57:01 Player: NQH Result: Destroyed by S-10 Pest with Light Assault Rifle Performance ------------- Evolutions (2) 1000 Regions Visited (4) 800 Robots Destroyed (18) 90 Value Destroyed (241) 241 Prototype IDs (1) 20 Alien Tech Used (0) 0 Bonus (0) 0 TOTAL SCORE: 2151 Bonus ------- None Cogmind --------- Core Integrity 0/550 Matter 77/300 Energy 80/100 System Corruption 1% Temperature Cool (0) Movement Core (50) Location -8/Materials Parts ------- > --- POWER (1) -------- (None) > --- PROPULSION (2) --- (None) > --- UTILITY (6) ------ (None) > --- WEAPON (2) ------- (None) > --- INVENTORY (5) ---- Armored Huge Wheel Cesium-ion Thruster Advanced Weight Redist. System Peak State ------------ > --- POWER ------------ Enhanced Nuclear Core > --- PROPULSION ------- Hover Unit Improved Hover Unit > --- UTILITY ---------- Microactuators Microactuators Microactuators Shock Absorption System Shock Absorption System Shock Absorption System > --- WEAPON ----------- Grenade Launcher > --- INVENTORY -------- (None) [Rating: 33] Favorites ----------- Power Ion Engine Engine Ion Engine Power Core Enhanced Nuclear Core Propulsion Light Treads Treads Light Treads Leg Aluminum Leg Wheel Armored Huge Wheel Hover Unit Hover Unit Utility Small Storage Unit Device Shock Absorption System Storage Small Storage Unit Processor Visual Processing Unit Weapon Light Assault Rifle Energy Gun Arc Projector Ballistic Gun Light Assault Rifle Launcher Grenade Launcher Build | -11 -10 -9 -9 -8 ------- Run | Yrd Mat Mat Min Mat Slots Evolved 4 | . . 2 . 2 Power . | . . . . . Propulsion . | . . . . . Utility 4 | . . 2 . 2 Weapon . | . . . . . Parts Attached 26 | 9 2 2 2 11 Power 2 | 1 . . . 1 Engine 1 | 1 . . . . Core 1 | . . . . 1 Reactor . | . . . . . Propulsion 7 | 4 . . 2 1 Treads 2 | 2 . . . . Leg 2 | 2 . . . . Wheel 1 | . . . . 1 Hover 2 | . . . 2 . Flight . | . . . . . Utility 8 | 1 . 1 . 6 Device 6 | . . . . 6 Storage 1 | 1 . . . . Processor 1 | . . 1 . . Hackware . | . . . . . Protection . | . . . . . Artifact . | . . . . . Weapon 9 | 3 2 1 . 3 Energy Gun 6 | 3 . . . 3 Energy Cannon . | . . . . . Ballistic Gun 1 | . 1 . . . Ballistic Cannon . | . . . . . Launcher 2 | . 1 1 . . Special Weapon . | . . . . . Impact Weapon . | . . . . . Slashing Weapon . | . . . . . Piercing Weapon . | . . . . . Special Melee Weapon . | . . . . . Unidentified Prototypes 1 | . . . . 1 Parts Lost 4 | . . . 2 2 Power 1 | . . . 1 . Propulsion 1 | . . . . 1 Utility . | . . . . . Weapon 2 | . . . 1 1 Highest Loss Streak 2 | . . . 2 1 To Critical Strikes . | . . . . . Average Backups . | . . 1 1 . Power . | . . . . . Propulsion . | . . . . . Utility . | . . . . . Weapon . | . . . . . Tool/Special . | . . . . . Unused Backups 2 | . . . . 2 Power . | . . . . . Propulsion 2 | . . . . 2 Utility . | . . . . . Weapon . | . . . . . Tool/Special . | . . . . . Average Slot Usage (%) 64 | . 78 67 61 56 Engine 7 | . 14 11 8 . Treads 14 | . 28 22 16 . Hover 4 | . . . 2 12 Device 10 | . . . . 32 Storage 7 | . 14 11 8 . Processor 2 | . . 1 8 . Ballistic Gun 6 | . 8 11 8 . Launcher 9 | . 12 11 10 6 Peak Build Rating 33 | 6 6 9 9 33 Average Rating 10 | 3 5 7 6 21 On Entrance 4 | . 4 6 9 4 Naked Turns 38 | . . . 11 27 Heaviest Build 18 | 12 14 15 15 18 Greatest Support 40 | 40 40 40 40 28 Greatest Overweight (x) 2 | . . . . 2 Average Overweight (x) . | . . . . . Largest Inventory Capacity 8 | 8 8 8 8 5 Average Capacity 6 | 7 8 8 7 5 Most Carried 4 | 2 . 2 2 4 Average Carried . | . . 1 1 1 Final Capacity 8 | 8 8 8 5 5 Final Carried 4 | . . 2 . 4 Class Distribution -------------------- 100% | Mutant Dominant Class ---------------- Mutant | -10/Materials Mutant | -9/Materials Mutant | -9/Mines Mutant | -8/Materials Resources | -11 -10 -9 -9 -8 ----------- Run | Yrd Mat Mat Min Mat Matter Collected 417 | 251 32 28 92 14 Remotely . | . . . . . Salvage Created 196 | . 67 50 39 40 Parts 26 | . 5 16 1 4 Haulers Intercepted . | . . . . . Recyclers Shooed . | . . . . . Parts Field Recycled . | . . . . . Retrieved Matter . | . . . . . Parts Self-Destructed . | . . . . . Prevented . | . . . . . Kills | -11 -10 -9 -9 -8 ------- Run | Yrd Mat Mat Min Mat Combat Hostiles Destroyed 15 | . 4 5 4 2 Guns 3 | . . 1 . 2 AOE 12 | . 4 4 4 . Classes Destroyed 6 | . 2 3 1 . Builder 2 | . . 2 . . Watcher 2 | . . 2 . . Swarmer 12 | . 3 4 3 2 Grunt 1 | . 1 . . . Sentry 1 | . . 1 . . Assembled 1 | . . . 1 . Best Kill Streak 5 | . 3 5 3 2 Combat Bots Only 4 | . 3 4 3 2 Max Kills in Single Turn 3 | . 2 3 3 1 Gunslinging . | . . . . . Exploded 3 | . 2 3 3 . Melee . | . . . . . Uniques/NPCs Destroyed . | . . . . . Combat | -11 -10 -9 -9 -8 -------- Run | Yrd Mat Mat Min Mat Hostile Shots Fired 123 | . 11 18 19 75 Missed 43 | . 6 8 5 24 Hits 80 | . 5 10 14 51 Projectile 80 | . 5 10 14 51 AOE 9 | . . . 9 . Critical Strikes 4 | . . 1 . 3 Damage Taken 1582 | . 52 147 531 852 Core 827 | . 28 52 197 550 Absorbed by Shields . | . . . . . Core Remaining (%) 75 | 100 88 . 37 . Volleys Fired 23 | . 3 11 2 7 Largest 2 | . 2 2 2 2 Hottest 110 | . 50 53 53 110 Shots Fired 43 | . 4 22 4 13 Gun 27 | . 1 11 2 13 Cannon . | . . . . . Launcher 16 | . 3 11 2 . Special . | . . . . . Kinetic 14 | . 1 11 2 . Thermal . | . . . . . Explosive 16 | . 3 11 2 . Electromagnetic 13 | . . . . 13 Robot Hit Streak 6 | . 2 6 4 5 Robot Miss Streak 5 | . 2 5 1 2 Penetration Max . | . . . . . Secondary Targets 1 | . . . . 1 Max Gunslinging Chain 1 | . . . . 1 Shots Hit Robots 25 | . 2 10 3 10 Core Hits 24 | . 4 11 3 6 Critical Kills . | . . . . . Critical Parts Destroyed . | . . . . . Critical Strikes . | . . . . . Melee Attacks . | . . . . . Impact . | . . . . . Slashing . | . . . . . Piercing . | . . . . . Sneak Attacks . | . . . . . Combat Hostiles . | . . . . . Follow-up Attacks . | . . . . . Damage Inflicted 1017 | . 143 525 228 121 Guns 174 | . 9 32 19 114 Cannons . | . . . . . Explosions 836 | . 134 493 209 . Melee . | . . . . . Ramming 7 | . . . . 7 Kinetic 60 | . 9 32 19 . Thermal . | . . . . . Explosive 836 | . 134 493 209 . Electromagnetic 114 | . . . . 114 Impact . | . . . . . Slashing . | . . . . . Piercing . | . . . . . Highest Corruption 1 | . . . . 1 Average Corruption 1 | . . . . 1 Corruption Purged . | . . . . . Corruption Blocked . | . . . . . Overload Shots . | . . . . . Overflow Damage 55 | . . 47 8 . Projectiles . | . . . . . Explosions 55 | . . 47 8 . Melee . | . . . . . Knockbacks . | . . . . . Impact . | . . . . . Kinetic . | . . . . . Secondary . | . . . . . Self-Inflicted Damage 101 | . 6 46 46 3 Shots 3 | . 1 1 1 . Rammed 2 | . . . . 2 Targets Rammed 2 | . . . . 2 Kicked . | . . . . . Crushed . | . . . . . Highest Temperature 125 | . 16 33 6 125 Average Temperature 35 | . 13 7 4 67 Received Heat Transfer 71 | . 6 45 20 . Siege Activations . | . . . . . Martial Activations . | . . . . . Shielding Activations . | . . . . . Robots Disrupted . | . . . . . Combat Hostiles . | . . . . . Robots Corrupted . | . . . . . Combat Hostiles . | . . . . . Parts Fried . | . . . . . Impact Corruptions . | . . . . . Robots Melted . | . . . . . Combat Hostiles . | . . . . . Parts Melted . | . . . . . Heat Transferred . | . . . . . Parts Sabotaged . | . . . . . Parts Stolen . | . . . . . Parts Stripped . | . . . . . Power Chain Reactions . | . . . . . Alert | -11 -10 -9 -9 -8 ------- Run | Yrd Mat Mat Min Mat Maximum Alert Level . | . . . . . Low Security (%) 100 | 100 100 100 100 100 Level 1 . | . . . . . Level 2 . | . . . . . Level 3 . | . . . . . Level 4 . | . . . . . Level 5 . | . . . . . High Security . | . . . . . Max Security . | . . . . . Peak Influence 170 | . 103 170 132 50 Initial 62 | . . 30 62 35 Average 49 | . 57 75 98 13 Influence Increases 531 | . 123 210 118 80 Destroy 0b10 Robot/C 280 | . 80 100 60 40 Destroy 0b10 Robot/NC 20 | . . 20 . . Destroy Leader 64 | . 20 24 10 10 Destroy Structure 107 | . 23 66 18 . Lose Combat Pursuer 60 | . . . 30 30 Influence Decreases 481 | . 50 123 188 120 Entered New Map 196 | . . 43 98 55 Time Decay 255 | . 50 80 70 55 Lost Part 30 | . . . 20 10 Squads Dispatched 3 | . 1 1 . 1 Investigation . | . . . . . Extermination . | . . . . . Reinforcement 3 | . 1 1 . 1 Assault . | . . . . . Garrison . | . . . . . Intercept . | . . . . . Searches Triggered . | . . . . . Construction Impeded 1 | . . 1 . . Haulers Reinforced . | . . . . . Active Scanning Responses . | . . . . . Cargo Convoy Interrupts . | . . . . . Stealth | -11 -10 -9 -9 -8 --------- Run | Yrd Mat Mat Min Mat Distress Signals 2 | . 1 . 1 . Communications Jammed . | . . . . . Distress Signals . | . . . . . Times Spotted 40 | . 7 7 13 13 Peak Tracking Total 9 | . 4 6 4 9 Tactical Retreats 3 | . . . 1 2 Traps | -11 -10 -9 -9 -8 ------- Run | Yrd Mat Mat Min Mat Traps Triggered . | . . . . . Indirectly . | . . . . . Trap Hack Attempts . | . . . . . Triggered . | . . . . . Disarmed . | . . . . . Reprogrammed . | . . . . . Reused . | . . . . . Traps Extracted . | . . . . . Installed . | . . . . . Triggered . | . . . . . Machines | -11 -10 -9 -9 -8 ---------- Run | Yrd Mat Mat Min Mat Machines Disabled . | . . . . . Max in Single Turn . | . . . . . Machines Repaired . | . . . . . Machines Dismantled . | . . . . . Machines Sabotaged . | . . . . . Overloaded Fab Kills . | . . . . . Hacking | -11 -10 -9 -9 -8 --------- Run | Yrd Mat Mat Min Mat Machines Accessed . | . . . . . Terminals . | . . . . . Fabricators . | . . . . . Repair Stations . | . . . . . Recycling Units . | . . . . . Scanalyzers . | . . . . . Garrison Access . | . . . . . Total Hacks . | . . . . . Successful . | . . . . . Failed . | . . . . . Catastrophic . | . . . . . Database Lockouts . | . . . . . Manual . | . . . . . Terminals . | . . . . . Fabricators . | . . . . . Repair Stations . | . . . . . Recycling Units . | . . . . . Scanalyzers . | . . . . . Garrison Access . | . . . . . Terminal Hacks . | . . . . . Fabricator Hacks . | . . . . . Repair Station Hacks . | . . . . . Recycling Unit Hacks . | . . . . . Scanalyzer . | . . . . . Garrison Access Hacks . | . . . . . Unauthorized Hacks . | . . . . . Terminals . | . . . . . Fabricators . | . . . . . Repair Stations . | . . . . . Recycling Units . | . . . . . Scanalyzers . | . . . . . Garrison Access . | . . . . . Data Cores Recovered . | . . . . . Used . | . . . . . Hacking Detections . | . . . . . Full Trace Events . | . . . . . Feedback Events . | . . . . . Feedback Blocked . | . . . . . Robot Schematics Acquired . | . . . . . Robots Built . | . . . . . Authchips . | . . . . . Time . | . . . . . Total Robot Build Rating . | . . . . . Part Schematics Acquired . | . . . . . Parts Built . | . . . . . Authchips . | . . . . . Time . | . . . . . Total Part Build Rating . | . . . . . Parts Repaired . | . . . . . Time . | . . . . . Parts Recycled . | . . . . . Recycled Matter . | . . . . . Retrieved Matter . | . . . . . Retrieved Components . | . . . . . Parts Scanalyzed . | . . . . . Part Schematics Acquired . | . . . . . Parts Damaged . | . . . . . Bothacking | -11 -10 -9 -9 -8 ------------ Run | Yrd Mat Mat Min Mat Used RIF Installer . | . . . . . Robots Hacked . | . . . . . Non-combat . | . . . . . Combat . | . . . . . Robot Hacks Applied . | . . . . . Relay Couplers Released . | . . . . . Fabnet Peak Effective % . | . . . . . Robots Rewired . | . . . . . Allies Hacked . | . . . . . Hacks Repelled . | . . . . . Allies | -11 -10 -9 -9 -8 -------- Run | Yrd Mat Mat Min Mat Total Allies . | . . . . . Largest Group . | . . . . . Highest-Rated Group . | . . . . . Highest-Rated Ally . | . . . . . Total Orders . | . . . . . Ally Attacks . | . . . . . Total Damage . | . . . . . Kills . | . . . . . Allies Corrupted . | . . . . . Allies Melted . | . . . . . Intel | -11 -10 -9 -9 -8 ------- Run | Yrd Mat Mat Min Mat Active Infowar (turns) 125 | . . 28 97 . Optics 125 | . . 28 97 . Robot Analysis Total . | . . . . . Derelict Logs Recovered 1 | . . . 1 . Drone Launches . | . . . . . Drone Recoveries . | . . . . . Exploration | -11 -10 -9 -9 -8 ------------- Run | Yrd Mat Mat Min Mat Turns Passed 799 | 91 155 179 141 233 Spaces Moved 467 | 53 87 91 130 106 Core 75 | 8 . . 22 45 Treads 276 | 41 87 91 57 . Legs 4 | 4 . . . . Wheels 5 | . . . . 5 Hover 107 | . . . 51 56 Flight . | . . . . . Fastest Speed 50 | 50 160 160 50 50 Average Speed 125 | 140 160 160 101 88 Slowest Speed 180 | 160 160 160 160 180 Overloaded Moves . | . . . . . Propulsion Burnouts . | . . . . . Robots Hopped . | . . . . . Potential Cave-ins . | . . . . . Cave-ins Triggered . | . . . . . Exploration Rate (%) 19 | 4 20 12 43 16 Regions Visited 4 Branch Regions 1 Pre-discovered Areas . | . . . . . Known Exits Taken . | . . . . . Unknown Exits Taken 4 | 1 1 1 1 . Scrap Searched 1 | . . . 1 . Spaces Dug . | . . . . . Terrain Destroyed 114 | . 22 68 24 . Melee . | . . . . . Projectile . | . . . . . AOE 114 | . 22 68 24 . Terrain Rammed . | . . . . . Walls Destroyed . | . . . . . Machines Disabled . | . . . . . Actions | -11 -10 -9 -9 -8 --------- Run | Yrd Mat Mat Min Mat Total 631 | 69 98 104 134 226 Wait 102 | . 7 . . 95 Move 463 | 52 86 90 129 106 Hop . | . . . . . Pick Up 4 | . . 1 . 3 Fast Attach 24 | 9 2 1 1 11 Attach 3 | . . . 2 1 Detach 4 | 3 . . . 1 Swap 1 | . . 1 . . Drop 5 | 5 . . . . Fire 23 | . 3 11 2 7 Melee . | . . . . . Ram 2 | . . . . 2 Kick . | . . . . . Crush . | . . . . . Escape Stasis . | . . . . . Rewire . | . . . . . Trap . | . . . . . Miscellaneous . | . . . . . Route ------- -11/Scrapyard -10/Materials -9/Materials -9/Mines -8/Materials History --------- Turn | Location | Event 3 | -11/Scrapyard | Discovered new exit (range 16) 92 | -11/Scrapyard | Entered Materials 223 | -10/Materials | Discovered new exit (range 16) 247 | -10/Materials | Entered another Materials area 247 | -9/Materials | Evolved 2 slots: Utility x2 316 | -9/Materials | Build established: Mutant 399 | -9/Materials | Discovered new exit (range 17) 426 | -9/Materials | Entered Mines 488 | -9/Mines | Assembled infested the area 493 | -9/Mines | Assisted by a Guerilla fighting off Assembled 517 | -9/Mines | Learned Materials terminal intel 523 | -9/Mines | Released all parts (5) 525 | -9/Mines | Core integrity fell below 50% 545 | -9/Mines | Discovered new exit (range 12) 567 | -9/Mines | Entered Materials 567 | -8/Materials | Evolved 2 slots: Utility x2 568 | -8/Materials | Loaded intel: 8 terminal locations 735 | -8/Materials | Released all parts (8) 746 | -8/Materials | Core integrity fell below 50% 777 | -8/Materials | Core integrity fell below 20% 786 | -8/Materials | Released all parts (3) 800 | -8/Materials | Destroyed by S-10 Pest with Light Assault Rifle Last Messages --------------- 00778_ Acquired Arc Projector. 00779_ U-05 Engineer builds a Wall. 00780_ R-06 Scavenger collects Lgt. Ion Engine. 00782_ Enh. Nuclear Core blasted off. 00785_ R-06 Scavenger collects Flight Unit. 00786_ Released Arm. Huge Wheel. 00786_ Released Arc Projector. 00786_ Acquired 2 matter. 00786_ Acquired 11 matter. 00787_ Slammed into U-05 Engineer. 00787_ Destabilizing: System corrupted (+1). 00788_ Penetrated by Slug. 00788_ Knocked back. 00789_ R-06 Scavenger collects Flight Unit. 00790_ K-01 Serf collects debris. 00794_ U-05 Engineer works on Purification Channel. 00799_ K-01 Serf collects debris. 00799_ Acquired Adv. Weight Redist. System. 00799_ U-05 Engineer works on Purification Channel. Map ----- +----------------------------------------------------+ | ?????????????????????????????????????????????? | | ?????????????????????????????????????????????? | | ?????????????????????????????????????????????? | | ?????????????????????????????????????????????? | | ?????????????????"""?????????????????????????? | | ?????????????????"T"?????????????????????????? | | ?????????????????????????????????????????????? | | ?????????????????????????????????????????????? | | ?????????????????????????????????????????????? | | ?????????????????????????????????????????????? | | ?????????????????????????????????????????????? | | ?????????????????????????????????????????????? | | ?????????????????????????????????????????????? | | ?????????????????????????????????????????????? | | ?????????????????????????????????????????????? | | ?????????????????????????????????????????????? | | ?????????????????????????????????????????????? | | ?????????????????????????????????????????????? | | ?????????????????????????????????????????????? | | ?????????????????????????????????????????????? | | ?????????????????????????????????????????????? | | ?????????????????????????????#???????????????? | | ???????????????????????????? #???????????????? | | ??????????????????????????? #???????T???????? | | ???????????????????########+#####????????????? | | ???????????????????# @ g #????????????? | | ???????????????????# #????????????? | | ???????????????????# ! ! #????????????? | | ???????????????????# s #????????????? | | ???????????????????# <<<